fUSD/lending_fUSD_20240113
["ID","MTS","AMOUNT","RATE_DAILY","PERIOD"]
[311476323,1705158675031,-500.0,0.00022889,2]
[311476324,1705158675042,-500.0,0.00022889,2]
[311476325,1705158675053,-500.0,0.00022889,2]
[311476326,1705158675063,-500.0,0.00022889,2]
[311476327,1705158675073,-500.0,0.00022889,2]
[311476328,1705158675083,-500.0,0.00022889,2]
[311476329,1705158675092,-500.0,0.00022889,2]
[311476330,1705158675102,-500.0,0.00022889,2]
[311476331,1705158675111,-500.0,0.00022889,2]
[311476332,1705158675121,-500.0,0.00022889,2]
[311476333,1705158675131,-500.0,0.00022889,2]
[311476334,1705158675140,-500.0,0.00022889,2]
[311476335,1705158675150,-500.0,0.00022889,2]
[311476336,1705158675160,-500.0,0.00022889,2]
[311476337,1705158675171,-1681.38,0.00022889,2]
[311476338,1705158675181,-1681.38,0.00022889,2]
[311476339,1705158675192,-500.0,0.00022889,2]
[311476340,1705158675203,-500.0,0.00022889,2]
[311476341,1705158675212,-500.0,0.00022889,2]
[311476342,1705158675223,-500.0,0.00022889,2]
[311476343,1705158675233,-500.0,0.00022889,2]
[311476344,1705158675244,-500.0,0.00022889,2]
[311476345,1705158675254,-367.2983592,0.00022889,2]
[311476346,1705158675264,-500.0,0.00022889,2]
[311476347,1705158675273,-500.0,0.00022889,2]
[311476348,1705158675283,-500.0,0.00022889,2]
[311476349,1705158675293,-500.0,0.00022889,2]
[311476350,1705158675303,-500.0,0.00022889,2]
[311476351,1705158675313,-513.63479599,0.00022889,2]
[311476352,1705158675322,-500.0,0.00022889,2]
[311476353,1705158675333,-500.0,0.00022889,2]
[311476354,1705158675344,-500.0,0.00022889,2]
[311476355,1705158675354,-500.0,0.00022889,2]
[311476356,1705158675364,-500.0,0.00022889,2]
[311476357,1705158675374,-500.0,0.00022889,2]
[311476358,1705158675384,-500.0,0.00022889,2]
[311476359,1705158675394,-513.8735677,0.00022889,2]
[311476360,1705158675404,-500.0,0.00022889,2]
[311476361,1705158675414,-500.0,0.00022889,2]
[311476362,1705158675425,-500.0,0.00022889,2]
[311476363,1705158675434,-500.0,0.00022889,2]
[311476364,1705158675445,-500.0,0.00022889,2]
[311476365,1705158675454,-517.96996771,0.00022889,2]
[311476366,1705158675465,-500.0,0.00022889,2]
[311476367,1705158675475,-548.97,0.00022889,2]
[311476368,1705158675485,-500.0,0.00022889,2]
[311476369,1705158675495,-548.97,0.00022889,2]
[311476370,1705158675504,-500.0,0.00022889,2]
[311476371,1705158675514,-500.0,0.00022889,2]
[311476372,1705158675524,-500.0,0.00022889,2]
[311476373,1705158675534,-510.26855483,0.00022889,2]
[311476374,1705158675545,-500.0,0.00022889,2]
[311476375,1705158675555,-500.0,0.00022889,2]
[311476376,1705158675565,-500.0,0.00022889,2]
[311476377,1705158675575,-571.77755626,0.00022889,2]
[311476378,1705158675585,-500.0,0.00022889,2]
[311476379,1705158675594,-500.0,0.00022889,2]
[311476380,1705158675604,-500.0,0.00022889,2]
[311476381,1705158675614,-500.0,0.00022889,2]
[311476382,1705158675625,-500.0,0.00022889,2]
[311476383,1705158675636,-500.0,0.00022889,2]
[311476384,1705158675645,-500.0,0.00022889,2]
[311476385,1705158675655,-500.0,0.00022889,2]
[311476386,1705158675665,-500.0,0.00022889,2]
[311476387,1705158675675,-500.0,0.00022889,2]
[311476388,1705158675685,-500.0,0.00022889,2]
[311476389,1705158675694,-500.0,0.00022889,2]
[311476390,1705158675704,-500.0,0.00022889,2]
[311476391,1705158675713,-500.0,0.00022889,2]
[311476392,1705158675723,-500.0,0.00022889,2]
[311476393,1705158675733,-500.0,0.00022889,2]
[311476394,1705158675743,-500.0,0.00022889,2]
[311476395,1705158675753,-500.0,0.00022889,2]
[311476396,1705158675762,-500.0,0.00022889,2]
[311476397,1705158675774,-500.0,0.00022889,2]
[311476398,1705158675784,-500.0,0.00022889,2]
[311476399,1705158675793,-500.0,0.00022889,2]
[311476400,1705158675803,-500.0,0.00022889,2]
[311476401,1705158675813,-500.0,0.00022889,2]
[311476402,1705158675823,-500.0,0.00022889,2]
[311476403,1705158675834,-717.43,0.00022889,2]
[311476404,1705158675844,-717.43,0.00022889,2]
[311476405,1705158675854,-500.0,0.00022889,2]
[311476406,1705158675864,-164.01290172,0.00022889,2]
[311476407,1705158675874,-500.0,0.00022889,2]
[311476408,1705158675884,-500.0,0.00022889,2]
[311476409,1705158675893,-500.0,0.00022889,2]
[311476410,1705158675903,-500.0,0.00022889,2]
[311476411,1705158675912,-500.0,0.00022889,2]
[311476412,1705158675922,-500.0,0.00022889,2]
[311476413,1705158675931,-500.0,0.00022889,2]
[311476414,1705158675941,-500.0,0.00022889,2]
[311476415,1705158675950,-500.0,0.00022889,2]
[311476416,1705158675959,-500.0,0.00022889,2]
[311476417,1705158675969,-500.0,0.00022889,2]
[311476418,1705158675979,-500.0,0.00022889,2]
[311476419,1705158675988,-500.0,0.00022889,2]
[311476420,1705158675998,-500.0,0.00022889,2]
[311476421,1705158676008,-500.0,0.00022889,2]
[311476422,1705158676017,-500.0,0.00022889,2]
[311476423,1705158676028,-500.0,0.00022889,2]
[311476424,1705158676037,-500.0,0.00022889,2]
[311476425,1705158676048,-500.0,0.00022889,2]
[311476426,1705158676058,-500.0,0.00022889,2]
[311476427,1705158676069,-500.0,0.00022889,2]
[311476428,1705158676078,-603.83,0.00022889,2]
[311476429,1705158676089,-500.0,0.00022889,2]
[311476430,1705158676098,-500.0,0.00022889,2]
[311476431,1705158676110,-500.0,0.00022889,2]
[311476432,1705158676120,-500.0,0.00022889,2]
[311476433,1705158676130,-500.0,0.00022889,2]
[311476434,1705158676139,-500.0,0.00022889,2]
[311476435,1705158676148,-223.64311506,0.00022889,2]
[311476436,1705158676158,-500.0,0.00022889,2]
[311476437,1705158676167,-500.0,0.00022889,2]
[311476438,1705158676177,-3901.0,0.00022889,2]
[311476439,1705158676186,-500.0,0.00022889,2]
[311476440,1705158676195,-500.0,0.00022889,2]
[311476441,1705158676205,-500.0,0.00022889,2]
[311476442,1705158676214,-3901.0,0.00022889,2]
[311476443,1705158676224,-500.0,0.00022889,2]
[311476444,1705158676233,-500.0,0.00022889,2]
[311476445,1705158676243,-500.0,0.00022889,2]
[311476446,1705158676252,-231.12723291,0.00022889,2]
[311476447,1705158676261,-500.0,0.00022889,2]
[311476448,1705158676273,-500.0,0.00022889,2]
[311476449,1705158676282,-500.0,0.00022889,2]
[311476450,1705158676291,-500.0,0.00022889,2]
[311476451,1705158676300,-752.67,0.00022889,2]
[311476452,1705158676310,-752.67,0.00022889,2]
[311476453,1705158676319,-500.0,0.00022889,2]
[311476454,1705158676328,-500.0,0.00022889,2]
[311476455,1705158676338,-533.26761424,0.00022889,2]
[311476456,1705158676347,-500.0,0.00022889,2]
[311476457,1705158676356,-500.0,0.00022889,2]
[311476458,1705158676366,-500.0,0.00022889,2]
[311476459,1705158676375,-500.0,0.00022889,2]
[311476460,1705158676385,-500.0,0.00022889,2]
[311476461,1705158676395,-500.0,0.00022889,2]
[311476462,1705158676404,-500.0,0.00022889,2]
[311476463,1705158676414,-500.0,0.00022889,2]
[311476464,1705158676424,-547.66196906,0.00022889,2]
[311476465,1705158676434,-500.0,0.00022889,2]
[311476466,1705158676443,-500.0,0.00022889,2]
[311476467,1705158676452,-500.0,0.00022889,2]
[311476468,1705158676735,-500.0,0.00022889,2]
[311476469,1705158676756,-500.0,0.00022889,2]
[311476470,1705158676767,-500.0,0.00022889,2]
[311476471,1705158676777,-500.0,0.00022889,2]
[311476472,1705158676786,-500.0,0.00022889,2]
[311476473,1705158676796,-500.0,0.00022889,2]
[311476474,1705158676806,-509.99139557,0.00022889,2]
[311476475,1705158676815,-500.0,0.00022889,2]
[311476476,1705158676824,-500.0,0.00022889,2]
[311476477,1705158676834,-500.0,0.00022889,2]
[311476478,1705158676843,-1952.73430378,0.00022889,2]
[311476479,1705158677376,-32.67569622,0.00022889,2]
[311476480,1705158677385,-1481.58784929,0.00022889,2]
[311476481,1705158679906,2000.0,0.00021926,2]
[311476482,1705158681513,250.0,0.00021921,2]
[311476483,1705158687259,562.16,0.0002194,2]
[311476484,1705158698910,159.35,0.0002196,2]
[311476485,1705158699286,159.35,0.00022129,2]
[311476487,1705158722694,176.2,0.00020016,2]
[311476488,1705158738822,200.0,0.00021913,2]
[311476491,1705158769427,500.0,0.00021913,2]
[311476492,1705158790404,159.25,0.00022142,2]
[311476494,1705158874636,153.89,0.00022056,2]
[311476495,1705158901674,500.0,0.00021918,2]
[311476496,1705158972795,6452.52,0.00021841,2]
[311476497,1705159003258,2682.44,0.00022887,7]
[311476498,1705159003521,2682.44,0.00022888,7]
[311476499,1705159004250,2682.44,0.00022888,7]
[311476500,1705159005848,2682.44,0.00022889,7]
[311476501,1705159006160,2682.44,0.00022889,7]
[311476502,1705159006434,2682.44,0.00022889,7]
[311476503,1705159006699,2682.44,0.00022889,7]
[311476504,1705159006957,2682.44,0.00022889,7]
[311476505,1705159007261,2682.44,0.0002289,7]
[311476506,1705159007531,2682.44,0.00022891,7]
[311476507,1705159007798,2682.44,0.00022995,7]
[311476508,1705159008098,2682.44,0.00022996,7]
[311476509,1705159008581,2682.44,0.00022996,7]
[311476510,1705159008842,2682.44,0.00022996,7]
[311476511,1705159009103,2682.44,0.00022996,7]
[311476512,1705159009355,2682.44,0.00022997,7]
[311476513,1705159009694,2682.44,0.00022997,7]
[311476514,1705159009892,2682.44,0.00022997,7]
[311476515,1705159010204,2682.44,0.00022997,7]
[311476516,1705159010452,2682.44,0.00022997,7]
[311476517,1705159010761,2682.44,0.00022997,7]
[311476518,1705159011021,2682.44,0.00022997,7]
[311476519,1705159011312,2682.44,0.00022997,7]
[311476520,1705159011601,2682.61655115,0.00022997,7]
[311476521,1705159086336,1685.94,0.00021836,2]
[311476522,1705159104761,550.27,0.0002184,2]
[311476523,1705159113700,369.15,0.00021838,2]
[311476524,1705159139770,162.42,0.00021839,2]
[311476525,1705159148786,150.0,0.00021836,2]
[311476526,1705159150416,450.0,0.00022,3]
[311476527,1705159189928,167.39,0.00019849,2]
[311476528,1705159190132,167.39,0.00022113,2]
[311476530,1705159332046,500.0,0.00022885,7]
[311476531,1705159528207,559.78,0.00021768,2]
[311476532,1705159621771,344.54,0.00021765,2]
[311476533,1705159640095,162.07,0.00021765,2]
[311476534,1705159726041,150.65,0.00019847,2]
[311476535,1705159726301,150.65,0.00022111,2]
[311476553,1705159832060,-159.35,0.00022297,2]
[311476554,1705159832070,-168.92,0.00022317,2]
[311476555,1705159832079,-159.35,0.00022466,2]
[311476556,1705159832088,-5743.53200001,0.00022521,2]
[311476557,1705159832116,-4871.1166462,0.00022521,2]
[311476593,1705159838711,-999.30268128,0.00022521,2]
[311476594,1705159838723,-857.06728924,0.00022521,2]
[311476595,1705159838987,-33603.08759751,0.00022521,2]
[311476596,1705159838996,-210.0,0.00022522,2]
[311476597,1705159839005,-1685.1085712,0.00022522,2]
[311476598,1705159839014,-162.42,0.00022567,2]
[311476599,1705159839023,-159.35,0.00022635,2]
[311476600,1705159839032,-358.12087549,0.00022698,2]
[311476601,1705159839044,-473.9389,0.00022698,2]
[311476602,1705159839053,-1000.0,0.00022699,2]
[311476603,1705159839062,-6988.98,0.000227,2]
[311476604,1705159839071,-256.46,0.000227,2]
[311476605,1705159839081,-150.0,0.00022729,2]
[311476606,1705159839090,-150.0,0.0002273,2]
[311476607,1705159839099,-150.0,0.00022733,2]
[311476608,1705159839108,-150.0,0.00022735,2]
[311476609,1705159839116,-150.0,0.00022743,2]
[311476610,1705159839125,-150.0,0.00022743,2]
[311476611,1705159839135,-344.54,0.00022744,2]
[311476612,1705159839146,-150.0,0.00022746,2]
[311476613,1705159839155,-300.0,0.00022747,2]
[311476614,1705159839163,-150.0,0.00022748,2]
[311476615,1705159839172,-150.0,0.00022749,2]
[311476616,1705159839182,-150.0,0.00022751,2]
[311476617,1705159839191,-150.0,0.00022751,2]
[311476618,1705159839200,-150.0,0.00022753,2]
[311476619,1705159839209,-150.0,0.00022753,2]
[311476620,1705159839219,-150.0,0.00022756,2]
[311476621,1705159839228,-150.0,0.00022758,2]
[311476622,1705159839237,-300.0,0.00022767,2]
[311476623,1705159839246,-150.0,0.00022769,2]
[311476624,1705159839255,-150.0,0.00022773,2]
[311476625,1705159839264,-150.0,0.00022776,2]
[311476626,1705159839275,-150.0,0.00022777,2]
[311476627,1705159839286,-150.0,0.0002278,2]
[311476628,1705159839294,-150.0,0.00022781,2]
[311476629,1705159839302,-150.0,0.00022784,2]
[311476630,1705159839311,-177.41890368,0.00022785,4]
[311476631,1705159839321,-150.0,0.00022786,2]
[311476632,1705159839330,-250.0,0.00022787,2]
[311476633,1705159839339,-2865.4569,0.00022788,2]
[311476634,1705159839348,-2006.81513112,0.00022788,2]
[311476635,1705159839357,-2859.14138188,0.00022788,2]
[311476636,1705159839366,-197.10559226,0.00022789,2]
[311476637,1705159839375,-150.0,0.00022792,2]
[311476639,1705159839385,-186.35155735,0.00022796,2]
[311476640,1705159839394,-7761.79501618,0.00022796,2]
[311476641,1705159839403,-405.37255056,0.00022796,2]
[311476642,1705159839412,-150.0,0.00022796,2]
[311476643,1705159839421,-1500.0,0.00022797,2]
[311476644,1705159839430,-500.0,0.00022797,2]
[311476645,1705159839439,-568.77909786,0.00022797,2]
[311476646,1705159839449,-500.0,0.00022797,2]
[311476647,1705159839457,-500.0,0.00022797,2]
[311476648,1705159839466,-500.0,0.00022797,2]
[311476649,1705159839475,-500.0,0.00022797,2]
[311476650,1705159839484,-233.97105109,0.00022797,2]
[311476651,1705159839493,-500.0,0.00022797,2]
[311476652,1705159839502,-512.22377493,0.00022797,2]
[311476653,1705159839511,-500.0,0.00022797,2]
[311476654,1705159839520,-500.0,0.00022797,2]
[311476655,1705159839531,-500.0,0.00022797,2]
[311476656,1705159839543,-500.0,0.00022797,2]
[311476657,1705159839552,-500.0,0.00022797,2]
[311476658,1705159839561,-500.0,0.00022797,2]
[311476659,1705159839570,-500.0,0.00022797,2]
[311476660,1705159839579,-500.0,0.00022797,2]
[311476661,1705159839588,-500.0,0.00022797,2]
[311476662,1705159839598,-500.0,0.00022797,2]
[311476663,1705159839607,-500.0,0.00022797,2]
[311476664,1705159839617,-500.0,0.00022797,2]
[311476665,1705159839625,-500.0,0.00022797,2]
[311476666,1705159839635,-500.0,0.00022797,2]
[311476667,1705159839644,-500.0,0.00022797,2]
[311476668,1705159839653,-500.0,0.00022797,2]
[311476669,1705159839662,-500.0,0.00022797,2]
[311476670,1705159839671,-500.0,0.00022797,2]
[311476671,1705159839679,-500.0,0.00022797,2]
[311476672,1705159839689,-500.0,0.00022797,2]
[311476673,1705159839698,-500.0,0.00022798,2]
[311476674,1705159839707,-500.0,0.00022798,2]
[311476675,1705159839716,-530.58290363,0.00022798,2]
[311476676,1705159839725,-500.0,0.00022798,2]
[311476677,1705159839734,-500.0,0.00022798,2]
[311476678,1705159839743,-210.43916283,0.00022798,2]
[311476679,1705159839752,-544.18238133,0.00022798,2]
[311476680,1705159839761,-500.0,0.00022798,2]
[311476681,1705159839770,-500.0,0.00022798,2]
[311476682,1705159839779,-500.0,0.00022798,2]
[311476683,1705159839789,-500.0,0.00022798,2]
[311476684,1705159839798,-519.20696118,0.00022798,2]
[311476685,1705159839807,-500.0,0.00022798,2]
[311476686,1705159839816,-500.0,0.00022798,2]
[311476687,1705159839825,-501.51595318,0.00022798,2]
[311476688,1705159839834,-500.0,0.00022798,2]
[311476689,1705159839843,-542.12225963,0.00022798,2]
[311476690,1705159839852,-500.0,0.00022798,2]
[311476691,1705159839861,-502.82879366,0.00022798,2]
[311476692,1705159839871,-500.0,0.00022798,2]
[311476693,1705159839880,-500.0,0.00022798,2]
[311476694,1705159839889,-500.0,0.00022798,2]
[311476695,1705159839898,-502.54024004,0.00022798,2]
[311476696,1705159839908,-500.0,0.00022798,2]
[311476697,1705159839917,-500.0,0.00022798,2]
[311476698,1705159839926,-500.0,0.00022798,2]
[311476699,1705159839935,-500.0,0.00022798,2]
[311476700,1705159839945,-500.0,0.00022798,2]
[311476701,1705159839954,-546.56580288,0.00022798,2]
[311476702,1705159839963,-500.0,0.00022798,2]
[311476703,1705159839973,-500.0,0.00022798,2]
[311476704,1705159839982,-500.0,0.00022798,2]
[311476705,1705159839992,-500.0,0.00022798,2]
[311476706,1705159840001,-500.0,0.00022798,2]
[311476707,1705159840010,-500.0,0.00022798,2]
[311476708,1705159840019,-501.97363134,0.00022798,2]
[311476709,1705159840030,-198.23344399,0.00022798,2]
[311476710,1705159840040,-500.0,0.00022798,2]
[311476711,1705159840049,-500.0,0.00022798,2]
[311476712,1705159840058,-518.75364888,0.00022798,2]
[311476713,1705159840068,-500.0,0.00022798,2]
[311476714,1705159840078,-501.67544599,0.00022798,2]
[311476715,1705159840087,-496.05279468,0.00022798,2]
[311476716,1705159840096,-196.81654054,0.00022798,2]
[311476717,1705159840105,-500.0,0.00022798,2]
[311476718,1705159840115,-500.0,0.00022798,2]
[311476719,1705159840124,-500.0,0.00022798,2]
[311476720,1705159840136,-500.0,0.00022798,2]
[311476721,1705159840146,-500.0,0.00022798,2]
[311476722,1705159840156,-500.0,0.00022798,2]
[311476723,1705159840165,-500.0,0.00022798,2]
[311476724,1705159840175,-502.67883005,0.00022798,2]
[311476725,1705159840184,-500.73612363,0.00022798,2]
[311476726,1705159840193,-576.43974707,0.00022798,2]
[311476727,1705159840202,-299.81712082,0.00022798,2]
[311476728,1705159840211,-500.0,0.00022798,2]
[311476729,1705159840220,-502.85162299,0.00022798,2]
[311476730,1705159840230,-198.34297232,0.00022798,2]
[311476731,1705159840239,-501.82487786,0.00022798,2]
[311476732,1705159840248,-510.6261547,0.00022798,2]
[311476733,1705159840257,-500.0,0.00022798,2]
[311476734,1705159840267,-500.0,0.00022798,2]
[311476735,1705159840276,-500.0,0.00022798,2]
[311476736,1705159840288,-508.53625725,0.00022798,2]
[311476737,1705159840298,-500.0,0.00022798,2]
[311476738,1705159840306,-500.0,0.00022798,2]
[311476739,1705159840315,-500.0,0.00022798,2]
[311476740,1705159840324,-500.0,0.00022798,2]
[311476741,1705159840334,-501.43849056,0.00022798,2]
[311476742,1705159840343,-500.0,0.00022798,2]
[311476743,1705159840352,-353.78794162,0.00022798,2]
[311476744,1705159840361,-500.0,0.00022798,2]
[311476745,1705159840370,-500.0,0.00022798,2]
[311476746,1705159840379,-500.0,0.00022798,2]
[311476747,1705159840388,-500.0,0.00022798,2]
[311476748,1705159840397,-501.50422481,0.00022798,2]
[311476750,1705159840406,-500.0,0.00022798,2]
[311476752,1705159840415,-500.0,0.00022798,2]
[311476754,1705159840424,-500.0,0.00022798,2]
[311476756,1705159840434,-500.0,0.00022798,2]
[311476757,1705159840444,-500.0,0.00022798,2]
[311476758,1705159840453,-500.0,0.00022798,2]
[311476759,1705159840462,-500.0,0.00022798,2]
[311476760,1705159840471,-500.0,0.00022798,2]
[311476761,1705159840480,-500.0,0.00022798,2]
[311476762,1705159840489,-500.0,0.00022798,2]
[311476763,1705159840498,-500.0,0.00022798,2]
[311476764,1705159840507,-500.0,0.00022798,2]
[311476765,1705159840517,-500.0,0.00022798,2]
[311476766,1705159840526,-500.0,0.00022798,2]
[311476767,1705159840538,-500.0,0.00022798,2]
[311476768,1705159840547,-182.56225824,0.00022798,2]
[311476769,1705159840556,-918.44,0.00022798,2]
[311476770,1705159840566,-918.44,0.00022798,2]
[311476771,1705159840575,-500.0,0.00022798,2]
[311476772,1705159840584,-1383.31,0.00022798,5]
[311476773,1705159840593,-1383.31,0.00022798,5]
[311476774,1705159840602,-500.0,0.00022798,2]
[311476775,1705159840611,-500.0,0.00022798,2]
[311476776,1705159840620,-500.0,0.00022798,2]
[311476777,1705159840630,-500.0,0.00022798,2]
[311476778,1705159840639,-500.0,0.00022798,2]
[311476779,1705159840648,-1672.18,0.00022798,2]
[311476780,1705159840657,-1672.18,0.00022798,2]
[311476781,1705159840666,-500.0,0.00022798,2]
[311476782,1705159840676,-500.0,0.00022798,2]
[311476783,1705159840685,-500.0,0.00022798,2]
[311476784,1705159840695,-502.36996732,0.00022798,2]
[311476785,1705159840704,-2815.71,0.00022798,2]
[311476786,1705159840714,-500.0,0.00022798,2]
[311476787,1705159840723,-2815.71,0.00022798,2]
[311476788,1705159840732,-500.0,0.00022798,2]
[311476789,1705159840741,-500.0,0.00022798,2]
[311476790,1705159840751,-500.0,0.00022798,2]
[311476791,1705159840759,-500.0,0.00022798,2]
[311476792,1705159840769,-500.0,0.00022798,2]
[311476793,1705159840778,-500.0,0.00022798,2]
[311476794,1705159840789,-736.13,0.00022798,2]
[311476795,1705159840798,-736.13,0.00022798,2]
[311476796,1705159840807,-1121.38,0.00022798,2]
[311476797,1705159840816,-1121.38,0.00022798,2]
[311476798,1705159840826,-500.0,0.00022798,2]
[311476799,1705159840835,-500.0,0.00022798,2]
[311476800,1705159841045,-500.0,0.00022798,2]
[311476801,1705159841101,-10984.21,0.00022798,2]
[311476802,1705159841111,-10984.21,0.00022798,2]
[311476803,1705159841120,-2612.02,0.00022798,2]
[311476804,1705159841133,-2612.02,0.00022798,2]
[311476805,1705159841142,-500.0,0.00022798,2]
[311476806,1705159841152,-1174.68,0.00022798,2]
[311476807,1705159841161,-1174.68,0.00022798,2]
[311476808,1705159841170,-500.0,0.00022798,2]
[311476809,1705159841180,-1139.72,0.00022798,2]
[311476810,1705159841189,-1139.72,0.00022798,2]
[311476811,1705159841198,-500.0,0.00022798,2]
[311476812,1705159841208,-500.0,0.00022798,2]
[311476813,1705159841217,-500.0,0.00022798,2]
[311476814,1705159841226,-691.69,0.00022798,2]
[311476815,1705159841235,-691.69,0.00022798,2]
[311476816,1705159841244,-500.0,0.00022798,2]
[311476817,1705159841254,-530.31,0.00022798,2]
[311476818,1705159841263,-500.0,0.00022798,2]
[311476819,1705159841272,-530.31,0.00022798,2]
[311476820,1705159841283,-500.0,0.00022798,2]
[311476821,1705159841292,-324.32341232,0.00022798,2]
[311476822,1705159841301,-2816.95,0.00022798,2]
[311476823,1705159841310,-2816.95,0.00022798,2]
[311476824,1705159841320,-500.0,0.00022798,2]
[311476825,1705159841329,-925.16,0.00022798,2]
[311476826,1705159841338,-500.0,0.00022798,2]
[311476827,1705159841347,-925.16,0.00022798,2]
[311476828,1705159841357,-500.0,0.00022798,2]
[311476829,1705159841366,-500.0,0.00022798,2]
[311476831,1705159841375,-500.0,0.00022798,2]
[311476832,1705159841384,-690.07,0.00022798,2]
[311476834,1705159841393,-690.07,0.00022798,2]
[311476836,1705159841402,-500.0,0.00022798,2]
[311476838,1705159841412,-500.0,0.00022798,2]
[311476840,1705159841421,-500.0,0.00022798,2]
[311476842,1705159841430,-518.75003996,0.00022798,2]
[311476844,1705159841438,-663.15,0.00022798,2]
[311476846,1705159841447,-500.0,0.00022798,2]
[311476848,1705159841456,-663.15,0.00022798,2]
[311476850,1705159841465,-569.09170218,0.00022798,2]
[311476851,1705159841474,-500.0,0.00022798,2]
[311476853,1705159841485,-500.0,0.00022798,2]
[311476855,1705159841494,-500.0,0.00022798,2]
[311476857,1705159841503,-500.0,0.00022798,2]
[311476859,1705159841511,-832.9,0.00022798,2]
[311476861,1705159841520,-832.9,0.00022798,2]
[311476863,1705159841529,-611.6,0.00022798,2]
[311476865,1705159841541,-611.6,0.00022798,2]
[311476867,1705159841550,-500.0,0.00022798,2]
[311476869,1705159841559,-500.0,0.00022798,2]
[311476870,1705159841568,-500.0,0.00022798,2]
[311476872,1705159841577,-864.0,0.00022798,2]
[311476873,1705159841586,-864.0,0.00022798,2]
[311476874,1705159841595,-500.0,0.00022798,2]
[311476875,1705159841604,-500.0,0.00022798,2]
[311476876,1705159841613,-500.0,0.00022798,2]
[311476877,1705159841622,-500.0,0.00022798,2]
[311476878,1705159841630,-500.0,0.00022798,2]
[311476879,1705159841639,-500.0,0.00022798,2]
[311476880,1705159841648,-1190.54,0.00022798,2]
[311476881,1705159841657,-1190.54,0.00022798,2]
[311476882,1705159841666,-831.73,0.00022798,2]
[311476883,1705159841675,-500.0,0.00022798,2]
[311476884,1705159841684,-831.73,0.00022798,2]
[311476885,1705159841692,-500.0,0.00022798,2]
[311476886,1705159841701,-500.0,0.00022798,2]
[311476888,1705159841710,-216.97722286,0.00022798,2]
[311476889,1705159841719,-500.0,0.00022798,2]
[311476890,1705159841729,-663.11,0.00022798,2]
[311476892,1705159841739,-663.11,0.00022798,2]
[311476894,1705159841748,-500.0,0.00022798,2]
[311476895,1705159841757,-500.0,0.00022798,2]
[311476896,1705159841766,-500.0,0.00022798,2]
[311476897,1705159841776,-500.0,0.00022798,2]
[311476898,1705159841787,-500.0,0.00022798,2]
[311476899,1705159841796,-500.0,0.00022798,2]
[311476900,1705159841806,-500.0,0.00022798,2]
[311476901,1705159841815,-500.0,0.00022798,2]
[311476902,1705159841825,-500.0,0.00022798,2]
[311476903,1705159841834,-500.0,0.00022798,2]
[311476904,1705159841843,-500.0,0.00022798,2]
[311476905,1705159841851,-519.80887105,0.00022798,2]
[311476906,1705159841860,-7804.69,0.00022798,2]
[311476907,1705159841870,-7804.69,0.00022798,2]